bitfinex/quotes_ETHUSD_20220123
["timestamp","ask_amount","ask_price","bid_price","bid_amount"]
[1642972992782,0.17793967,2424.0,2423.6,1.18515699]
[1642972993188,0.17793967,2424.0,2423.5,1.37261873]
[1642972993386,0.01293967,2424.0,2423.5,1.37261873]
[1642972993789,0.99988732,2423.8,2423.5,1.37261873]
[1642972993990,0.01293967,2424.0,2423.5,1.37261873]
[1642972994199,4.789,2424.9,2423.5,1.37261873]
[1642972994200,0.165,2424.6,2423.6,0.04999999]
[1642972994393,5.2112,2425.2,2423.6,0.04999999]
[1642972994394,0.165,2424.9,2423.7,0.596]
[1642972994595,0.04035806,2424.7,2423.8,26.27]
[1642972994793,0.04035806,2424.7,2423.9,0.63332523]
[1642972995096,0.91250339,2424.9,2424.5,1.45192386]
[1642972995297,0.91250339,2424.9,2423.9,2.196]
[1642972995298,0.91250339,2424.9,2424.2,0.596]
[1642972995493,0.91250339,2424.9,2424.2,0.896]
[1642972996131,0.91250339,2424.9,2424.3,1.44768502]
[1642972996333,1.07730339,2424.9,2423.8,0.3]
[1642972996535,1.08169301,2424.5,2424.0,1.17720077]
[1642972996736,1.08169301,2424.5,2423.9,0.2180533]
[1642972996940,1.08169301,2424.5,2423.9,0.165]
[1642972997337,1.08169301,2424.5,2423.7,0.165]
[1642972997742,1.36515968,2424.0,2423.7,0.165]
[1642972997940,1.36515968,2424.0,2423.3,1.29966551]
[1642972997941,0.91250339,2423.8,2423.4,0.3830533]
[1642972998141,0.91250339,2423.8,2423.3,0.165]
[1642972998347,0.01235072,2423.6,2422.8,3.665]
[1642972998540,0.01235072,2423.6,2422.8,3.5]
[1642972998541,0.165,2423.5,2422.8,3.5]
[1642972998739,0.165,2423.5,2422.6,0.00157399]
[1642972998939,0.165,2423.5,2422.6,0.00157397]
[1642972999340,0.165,2423.5,2422.9,1.6184564]
[1642972999539,0.165,2423.9,2422.9,1.6184564]
[1642972999776,0.165,2424.1,2422.9,1.6184564]
[1642973000375,0.82396538,2423.3,2422.9,1.4004031]
[1642973001576,0.82396538,2423.3,2422.9,0.465]
[1642973001776,0.82396538,2423.3,2422.8,0.165]
[1642973001979,0.82396538,2423.3,2422.7,0.00157394]
[1642973002178,0.165,2423.2,2422.7,0.00157394]
[1642973002377,0.82396538,2423.3,2422.7,0.00157394]
[1642973002982,1.04917869,2422.9,2422.7,0.00157394]
[1642973003454,7.19836725,2422.8,2422.7,0.00157394]
[1642973004235,11.3653946,2422.8,2422.7,0.00157394]
[1642973004436,12.5726746,2422.8,2422.7,0.00157394]
[1642973005035,11.3653946,2422.8,2422.7,0.00157394]
[1642973005636,8.7153946,2422.8,2422.7,0.00157394]
[1642973006842,3.6653946,2422.8,2422.7,0.00157394]
[1642973007045,1.51702735,2422.8,2422.7,0.00157394]
[1642973007282,7.33329771,2422.8,2422.7,0.00157394]
[1642973008282,10.24057771,2422.8,2422.7,0.00157394]
[1642973008481,11.24057771,2422.8,2422.7,0.00077394]
[1642973008682,8.54057771,2422.8,2422.7,0.00077394]
[1642973010482,9.43657771,2422.8,2422.7,0.00077394]
[1642973010682,9.13657771,2422.8,2422.7,0.00077394]
[1642973013536,33.40657771,2422.8,2422.7,0.00077394]
[1642973013737,2.606e-05,2422.6,2421.4,0.00131785]
[1642973013939,24.27,2422.5,2421.4,0.00289179]
[1642973014147,3.47906602,2422.4,2421.4,0.00289179]
[1642973014342,7.44776602,2422.4,2421.4,0.00289179]
[1642973014538,31.71776602,2422.4,2421.4,0.00289179]
[1642973014979,0.1651,2422.3,2421.4,0.00289179]
[1642973015180,0.37238,2422.3,2421.4,0.00289179]
[1642973015485,1.94727377,2421.5,2421.4,0.00289179]
[1642973017092,9.33984802,2421.5,2421.4,0.00289179]
[1642973017285,9.29342212,2421.5,2421.4,0.00289179]
[1642973017484,9.45852212,2421.5,2421.4,0.00289179]
[1642973017684,10.45852212,2421.5,2421.4,0.00289179]
[1642973017885,10.66580212,2421.5,2421.4,0.00289179]
[1642973019145,32.98852835,2421.5,2421.4,9.179e-05]
[1642973019352,32.98852835,2421.5,2420.0,0.1651]
[1642973019353,0.00070821,2421.3,2420.0,0.1651]
[1642973019546,0.01219852,2421.0,2420.0,0.1651]
[1642973019746,0.37248,2420.9,2420.0,0.1651]
[1642973019945,6.22167731,2420.8,2420.0,0.1651]
[1642973020147,1.1652,2420.7,2420.0,0.1651]
[1642973020344,0.8802849,2420.3,2420.0,0.1651]
[1642973021146,1.1526019,2420.4,2420.0,0.1651]
[1642973021350,0.13819997,2420.9,2419.6,0.01236118]
[1642973021553,0.13819997,2420.9,2420.1,0.06959083]
[1642973021745,0.13819997,2420.9,2420.2,0.1652]
[1642973021950,0.00070821,2421.3,2420.2,0.1652]
[1642973022184,1.01716905,2420.9,2420.5,0.2180533]
[1642973022981,1.01716905,2420.9,2420.4,1.95096738]
[1642973023583,1.01716905,2420.9,2420.4,2.95096738]
[1642973023984,1.01716905,2420.9,2420.4,3.16902068]
[1642973024591,1.01716905,2420.9,2420.4,1.4152]
[1642973024986,1.01716905,2420.9,2420.4,0.4152]
[1642973026432,1.29562327,2421.1,2420.4,0.4152]
[1642973027427,0.88965472,2420.9,2420.5,0.2180533]
[1642973027632,0.00070821,2421.3,2420.5,0.2180533]
[1642973027832,0.00070821,2421.3,2420.6,0.7612]
[1642973028034,0.00070821,2421.3,2420.7,0.03274339]
[1642973028237,0.00070821,2421.3,2420.8,0.7612]
[1642973028434,0.00070821,2421.3,2420.8,1.0612]
[1642973028635,0.00070821,2421.3,2421.0,1.04126119]
[1642973028834,0.00070821,2421.3,2421.1,0.7612]
[1642973030985,0.00070821,2421.3,2421.1,0.596]
[1642973031186,0.00070821,2421.3,2420.7,0.596]
[1642973031595,0.00070821,2421.3,2420.8,0.1652]
[1642973031791,0.00070821,2421.3,2420.9,8.051]
[1642973031990,0.1652,2421.6,2421.1,7.7]
[1642973032191,0.1652,2421.6,2421.2,0.81109999]
[1642973032393,0.1652,2421.6,2421.2,1.81109999]
[1642973032591,1.01178361,2421.4,2421.2,1.81109999]
[1642973032995,1.01178361,2421.4,2421.2,0.64599999]
[1642973033440,1.01178361,2421.4,2421.1,0.3]
[1642973033634,1.01178361,2421.4,2420.7,1.0612]
[1642973033836,1.10092534,2421.2,2420.7,1.0612]
[1642973034435,1.01178361,2421.4,2420.7,1.0612]
[1642973034635,0.1652,2421.8,2420.7,1.3612]
[1642973034835,3.667,2421.9,2420.7,1.3612]
[1642973035043,0.1652,2422.1,2420.8,0.03471554]
[1642973035234,2.38204233,2422.2,2420.9,0.596]
[1642973035235,0.30329997,2422.2,2420.9,0.596]
[1642973035435,0.1651,2422.3,2420.9,8.08365382]
[1642973035635,3.9913,2422.5,2421.8,1.42998226]
[1642973035636,1.32422539,2422.5,2421.8,1.42998226]
[1642973035840,2.606e-05,2422.6,2421.9,0.596]
[1642973036040,0.1651,2423.8,2422.2,0.01253013]
[1642973036241,4.03192438,2424.0,2422.5,0.01201224]
[1642973036242,0.165,2424.0,2422.5,0.01201224]
[1642973036440,4.03192438,2424.1,2422.6,0.165]
[1642973036441,0.165,2424.1,2422.6,0.165]
[1642973036635,1.13197734,2423.1,2422.6,0.596]
[1642973036835,0.20728,2424.0,2422.6,0.596]
[1642973036836,0.86221906,2422.7,2422.6,0.596]
[1642973037038,0.86221906,2422.7,2422.3,0.465]
[1642973037039,0.86221906,2422.7,2422.3,0.596]
[1642973037293,0.1651,2422.6,2421.6,1.45131862]
[1642973037489,0.0125963,2422.4,2421.6,1.45131862]
[1642973037694,0.92875573,2422.2,2421.6,1.45131862]
[1642973037891,0.1651,2422.1,2421.0,0.596]
[1642973038090,0.4651,2422.1,2420.8,0.1651]
[1642973038491,0.1651,2422.1,2420.8,0.1651]
[1642973038692,0.1651,2422.1,2420.6,3.6651]
[1642973039093,0.93559151,2420.8,2420.7,7.43]
[1642973039292,2.0,2422.0,2420.9,1.87118301]
[1642973039495,0.1651,2421.9,2420.9,1.87118301]
[1642973039891,0.1651,2422.0,2420.9,1.87118301]
[1642973040093,1.53112845,2421.5,2421.0,0.1651]
[1642973040300,0.88838907,2421.0,2420.9,1.87118301]
[1642973040495,0.88838907,2421.0,2420.9,2.03638301]
[1642973040935,1.53112845,2421.5,2420.9,6.23638301]
[1642973041128,1.53112845,2421.5,2421.0,1.1652]
[1642973041929,1.04740867,2421.1,2421.0,1.1652]
[1642973042333,1.53112845,2421.5,2421.0,1.1652]
[1642973042531,0.1652,2422.1,2421.0,1.1652]
[1642973043335,0.1652,2422.1,2421.0,0.1652]
[1642973043538,0.93109038,2421.1,2420.9,5.89988301]
[1642973043739,0.93109038,2421.1,2420.9,2.17118301]
[1642973043936,0.93109038,2421.1,2420.9,1.87118301]
[1642973044784,1.29989134,2421.0,2420.9,1.87118301]
[1642973045185,1.28814637,2421.0,2420.9,2.17118301]
[1642973046188,3.15,2420.9,2420.1,0.5]
[1642973046390,0.12751451,2420.7,2420.1,0.5]
[1642973046787,0.20728,2420.6,2420.1,0.5]
[1642973046988,0.1652,2420.5,2420.1,0.5]
[1642973047189,1.17170146,2420.4,2420.1,0.5]
[1642973047391,0.1652,2420.3,2420.1,0.5]
[1642973047590,5.73109038,2420.2,2420.1,0.5]
[1642973047789,1.39629038,2420.2,2420.1,0.5]
[1642973048193,0.93109038,2420.2,2420.1,0.5]
[1642973048638,1.23109038,2420.2,2420.1,0.5]
[1642973048838,0.93109038,2420.2,2420.1,0.5]
[1642973049540,0.80663386,2420.2,2420.1,0.5]
[1642973049939,0.80663386,2420.2,2419.4,0.1652]
[1642973049940,7.1,2420.1,2419.4,0.1652]
[1642973050142,0.1653,2420.0,2419.4,0.1652]
[1642973050341,1.43017255,2419.5,2419.4,0.1652]
[1642973050743,1.55768706,2419.5,2419.4,0.1652]
[1642973051038,1.30293791,2419.5,2419.4,0.1652]
[1642973051649,0.09942473,2419.5,2419.4,3.0152]
[1642973052040,0.09942473,2419.5,2419.4,3.3152]
[1642973052283,0.07425124,2419.5,2419.4,3.3152]
[1642973052485,0.04924779,2419.5,2419.2,7.73]
[1642973052684,1.4711992,2419.5,2419.2,7.73]
[1642973052884,1.44445825,2419.5,2419.2,7.73]
[1642973053184,1.41590243,2419.5,2419.2,7.73]
[1642973053501,0.77813903,2419.4,2419.2,7.43]
[1642973053690,1.07813903,2419.4,2419.2,7.43]
[1642973053890,1.2185687,2419.4,2419.2,7.43]
[1642973054492,1.16491622,2419.4,2419.2,7.43]
[1642973054893,0.77813903,2419.4,2419.2,7.73]
[1642973055093,0.74897527,2419.4,2419.2,7.73]
[1642973055293,0.1653,2419.7,2419.2,7.73]
[1642973055494,0.1653,2420.1,2419.2,7.73]
[1642973055692,2.9048,2420.5,2419.2,7.73]
[1642973055693,0.37258,2420.2,2419.2,7.73]
[1642973055946,0.1653,2420.2,2419.2,7.73]
[1642973056334,0.1653,2420.2,2419.4,2.22545425]
[1642973056537,0.35843487,2420.6,2419.4,2.22545425]
[1642973056538,0.1653,2420.4,2419.4,2.52545425]
[1642973056740,0.35843487,2420.6,2419.4,2.52545425]
[1642973056741,0.1652,2420.5,2419.4,2.52545425]
[1642973057540,0.74897527,2420.0,2419.4,2.52545425]
[1642973058750,0.74897527,2420.0,2419.5,0.1653]
[1642973059143,0.74897527,2420.0,2419.5,1.1153]
[1642973059342,0.74897527,2420.0,2419.5,0.1153]
[1642973059544,2.07858769,2419.9,2419.5,0.1153]
[1642973059808,2.1723728,2419.9,2419.2,7.73]
[1642973060210,2.1723728,2419.9,2419.2,7.43]
[1642973060412,3.6683728,2419.9,2419.2,7.43]
[1642973060612,1.29872582,2419.8,2419.2,7.43]
[1642973060812,2.60299799,2419.7,2419.0,0.1653]
[1642973061315,1.0,2419.6,2419.0,0.1653]
[1642973061512,0.1653,2419.5,2419.0,0.1653]
[1642973061714,1.2266204,2419.3,2419.0,0.1653]
[1642973061914,1.2266204,2419.3,2418.7,2.17911688]
[1642973062118,1.2266204,2419.3,2418.7,1.23393018]
[1642973062916,1.2266204,2419.3,2418.6,7.43]
[1642973063114,1.2266204,2419.3,2418.6,7.73]
[1642973063315,1.1766204,2419.3,2418.6,7.73]
[1642973063550,1.1766204,2419.3,2418.7,1.65615988]
[1642973064151,1.1766204,2419.3,2418.7,3.5163346]
[1642973064848,1.1766204,2419.3,2418.7,1.86017472]
[1642973066748,1.1766204,2419.3,2419.1,0.60309971]
[1642973066948,0.1653,2419.8,2419.1,0.60309971]
[1642973067189,0.74897527,2420.0,2418.8,0.3]
[1642973067386,0.74897527,2420.0,2418.9,3.51667231]
[1642973067585,0.74897527,2420.0,2419.0,1.0]
[1642973067786,0.74897527,2420.0,2419.1,7.43]
[1642973067988,1.25347112,2419.7,2419.2,2.27636372]
[1642973068188,1.25347112,2419.7,2419.2,2.57636372]
[1642973068391,1.25347112,2419.7,2419.2,3.61387572]
[1642973068589,1.25347112,2419.7,2419.2,0.4653]
[1642973068993,0.3,2419.6,2419.1,7.73]
[1642973069201,0.1653,2419.5,2419.1,7.73]
[1642973069393,1.25347112,2419.7,2419.1,7.73]
[1642973069594,1.36468831,2419.3,2419.1,7.73]
[1642973070192,0.1653,2419.8,2419.1,7.73]
[1642973070397,0.74897527,2420.0,2419.1,7.73]
[1642973070398,0.1653,2419.9,2419.3,0.3852912]
[1642973070595,0.74897527,2420.0,2419.3,0.3]
[1642973070797,1.04897527,2420.0,2419.3,0.3]
[1642973071040,1.04897527,2420.0,2419.2,1.3]
[1642973071638,1.43906349,2419.6,2419.2,1.3]
[1642973074454,0.74897527,2420.0,2419.3,0.55045011]
[1642973074688,0.74897527,2420.0,2419.3,0.71575011]
[1642973075596,2.06873963,2420.0,2419.3,0.71575011]
[1642973075790,2.06873963,2420.0,2419.3,0.1653]
[1642973081556,0.25349997,2420.3,2419.6,1.13805696]
[1642973081757,3.49897905,2421.6,2419.6,3.1502919]
[1642973081758,0.496,2421.1,2419.6,3.1502919]
[1642973081959,0.1652,2421.4,2419.8,1.03362]
[1642973082200,5.09742643,2421.6,2419.9,2.38252618]
[1642973082201,0.1652,2421.6,2419.9,2.38252618]
[1642973082402,0.1652,2421.6,2419.9,2.68252618]
[1642973082604,0.74897527,2420.4,2420.1,1.20202366]
[1642973082801,0.74897527,2420.4,2420.0,1.0]
[1642973083006,0.74897527,2420.4,2419.9,1.3]
[1642973083406,0.74897527,2420.4,2419.6,0.1652]
[1642973083604,0.74897527,2420.4,2419.3,0.1652]
[1642973083805,0.74897527,2420.4,2419.6,0.36515526]
[1642973084009,0.74897527,2420.4,2419.7,0.1652]
[1642973084206,0.74897527,2420.4,2419.3,0.1652]
[1642973084607,0.74897527,2420.4,2419.4,3.51636586]
[1642973084806,2.26823418,2420.4,2419.8,1.13754205]
[1642973085011,2.26823418,2420.4,2419.8,2.27475136]
[1642973085206,0.74897527,2420.4,2419.8,2.27475136]
[1642973085508,0.74897527,2420.4,2419.8,3.57475136]
[1642973085709,2.1652,2420.9,2419.8,3.87475136]
[1642973085973,5.11002842,2421.2,2419.9,0.06956304]
[1642973085974,0.01260199,2421.2,2419.9,0.06956304]
[1642973086159,1.4095,2421.4,2420.8,1.37764944]
[1642973086160,1.25622727,2421.3,2420.8,1.37764944]
[1642973086361,5.26262643,2421.6,2420.8,1.37764944]
[1642973086559,6.9092,2421.7,2420.9,0.1652]
[1642973086758,0.74897527,2421.1,2420.9,0.1652]
[1642973086960,0.04,2421.8,2420.9,0.1652]
[1642973087567,1.26566267,2421.8,2421.2,1.19386694]
[1642973087764,1.26566267,2421.8,2421.3,0.1651]
[1642973087961,1.26566267,2421.8,2420.8,0.92606512]
[1642973087962,0.74897527,2421.7,2420.9,0.1651]
[1642973088964,0.74897527,2421.7,2421.3,1.19356009]
[1642973089165,0.74897527,2421.7,2421.3,1.49356009]
[1642973090027,0.74897527,2421.7,2421.3,0.3]
[1642973090234,2.14798099,2421.6,2421.3,0.3]
[1642973090535,0.04,2421.8,2420.9,0.4427]
[1642973090928,0.04,2421.8,2420.9,0.1651]
[1642973091132,1.23615215,2421.5,2421.0,1.31447674]
[1642973091731,0.74897527,2421.2,2421.0,1.31447674]
[1642973092131,0.74897527,2421.2,2421.0,1.61447674]
[1642973092636,0.04,2421.8,2421.0,1.61447674]
[1642973093031,0.04,2421.8,2421.0,2.61447674]
[1642973093230,1.26189725,2421.7,2421.0,1.61447674]
[1642973093459,0.74897527,2421.3,2421.1,1.0]
[1642973093664,0.74897527,2421.3,2421.0,1.61447674]
[1642973093963,0.74897527,2421.3,2421.1,0.1652]
[1642973094163,0.74897527,2421.3,2421.0,1.61447674]
[1642973094365,0.74897527,2421.3,2421.0,0.3]
[1642973094563,0.74897527,2421.3,2420.9,0.3]
[1642973094763,0.74897527,2421.3,2420.7,0.4652]
[1642973094964,0.74800702,2421.3,2420.7,0.1652]
[1642973095266,1.26189725,2421.7,2421.0,1.50920853]
[1642973095470,0.04,2421.8,2421.0,1.50920853]
[1642973095663,0.04,2421.8,2421.0,1.80920853]
[1642973096466,0.04,2421.8,2421.2,0.53061439]
[1642973096867,0.04,2421.8,2421.3,0.56556304]
[1642973097067,0.04,2421.8,2421.4,1.41459893]
[1642973097303,0.04,2422.0,2421.5,8.196]
[1642973097503,0.04,2422.0,2421.8,0.93362829]
[1642973097702,0.04,2422.0,2421.8,1.75150961]
[1642973097903,0.04,2422.0,2421.8,2.05150961]
[1642973098106,0.04,2422.4,2422.3,1.2571947]
[1642973098503,0.04,2422.4,2422.3,1.5571947]
[1642973098704,0.04,2422.4,2422.3,2.08780909]
[1642973098904,0.04,2422.5,2422.4,5.8]
[1642973099104,0.04,2422.5,2422.4,6.9651]
[1642973099306,2.04271059,2423.6,2422.5,7.7]
[1642973099508,1.09735181,2423.4,2422.9,1.52584527]
[1642973099706,0.04,2423.6,2423.0,0.165]
[1642973099904,0.04,2423.6,2422.7,0.165]
[1642973100306,0.04,2423.6,2422.7,0.465]
[1642973100307,0.74800702,2423.5,2422.7,0.465]
[1642973100506,0.74800702,2423.5,2422.7,0.165]
[1642973100711,0.01292792,2423.3,2422.7,0.165]
[1642973100955,0.165,2423.2,2421.6,0.496]
[1642973101158,0.01258947,2422.7,2421.4,3.6294]
[1642973101354,0.1651,2422.6,2421.4,3.7945]
[1642973101860,1.43976362,2422.4,2421.9,1.34914473]
[1642973102054,0.01258947,2422.7,2421.9,1.34914473]
[1642973102254,3.4502,2423.0,2421.9,1.51424473]
[1642973102454,0.1651,2423.1,2422.0,0.496]
[1642973102656,0.1651,2423.2,2422.2,1.01880192]
[1642973102856,5.2665764,2423.3,2422.2,1.01880192]
[1642973102857,3.25377559,2423.3,2422.2,1.01880192]
[1642973103055,1.37246828,2423.2,2422.7,1.34352993]
[1642973103258,3.15000118,2423.5,2422.7,1.64352993]
[1642973103259,2.98490118,2423.5,2422.7,1.64352993]
[1642973103553,0.74800702,2423.5,2422.7,1.64352993]
[1642973103754,0.74800702,2423.5,2422.7,1.94352993]
[1642973103953,0.74800702,2423.5,2422.8,0.165]
[1642973104355,2.13135712,2423.5,2422.8,0.165]
[1642973104808,2.13135712,2423.5,2422.4,0.165]
[1642973105011,2.16473988,2423.4,2422.4,0.595]
[1642973105210,2.16473988,2423.4,2422.2,0.165]
[1642973105211,0.17704607,2423.3,2422.1,0.165]
[1642973105410,0.17704607,2423.3,2422.0,0.1651]
[1642973105820,1.38219312,2422.8,2422.2,1.30571935]
[1642973106012,1.38219312,2422.8,2422.2,1.60571935]
[1642973106211,0.01204607,2423.3,2422.2,1.60571935]
[1642973106613,0.01204607,2423.3,2422.2,1.90571935]
[1642973106816,0.74800702,2423.5,2422.4,1.03247]
[1642973107014,0.74800702,2423.5,2422.5,0.60766842]
[1642973107815,0.74800702,2423.5,2422.5,0.595]
[1642973108216,0.74800702,2423.5,2422.5,0.76]
[1642973108645,1.21812939,2423.1,2422.5,1.97806996]
[1642973109045,0.74800702,2423.5,2423.0,0.86621975]
[1642973109252,0.74800702,2423.5,2423.0,0.595]
[1642973109654,0.74800702,2423.5,2423.1,0.165]
[1642973110047,0.74800702,2423.5,2423.3,1.20266152]
[1642973110250,0.74800702,2423.5,2423.2,0.595]
[1642973110451,0.74800702,2423.5,2423.1,0.165]
[1642973110648,0.74800702,2423.5,2423.1,0.465]
[1642973110849,0.74800702,2423.5,2423.1,0.165]
[1642973111055,0.04,2423.6,2423.1,0.465]
[1642973111249,0.04,2423.6,2423.3,1.10103859]
[1642973111451,0.04,2423.6,2423.1,0.465]
[1642973112194,0.74800702,2423.5,2423.1,0.465]
[1642973112397,1.36185615,2423.4,2423.1,0.165]
[1642973112599,1.36185615,2423.4,2421.9,7.8547]
[1642973112600,3.64594877,2423.4,2421.9,9.6131]
[1642973112797,3.64594877,2423.4,2421.9,5.7568]
[1642973112798,0.1651,2423.3,2421.9,5.7568]
[1642973113296,0.1651,2423.3,2422.2,0.01253502]
[1642973113500,0.04,2423.6,2422.4,2.06477]
[1642973113706,0.04,2423.6,2422.8,0.01293662]
[1642973113901,0.04,2423.6,2422.9,0.76]
[1642973114303,0.04,2423.6,2422.9,0.82956304]
[1642973114503,0.04,2423.7,2423.1,7.7]
[1642973114703,0.04,2423.7,2423.2,0.80999999]
[1642973114903,0.04,2423.7,2423.5,0.40181852]
[1642973115303,0.04,2423.7,2423.5,0.70181852]
[1642973115705,0.04,2423.7,2423.6,1.23462984]
[1642973116140,0.04,2423.7,2423.6,2.23462984]
[1642973116540,0.04,2423.7,2423.6,2.53462984]
[1642973116744,0.04,2424.0,2423.7,6.15]
[1642973116944,0.04,2424.1,2423.8,0.595]
[1642973117145,3.22906923,2425.0,2423.9,7.865]
[1642973117342,3.22906923,2425.0,2424.0,0.595]
[1642973117546,3.22906923,2425.0,2424.1,2.17756009]
[1642973117547,0.03035806,2425.0,2424.1,2.17756009]
[1642973117743,0.03035806,2425.0,2424.2,2.0631515]
[1642973117943,5.806e-05,2425.0,2424.8,0.01264627]
[1642973118145,0.00271117,2425.9,2424.9,8.4598]
[1642973118343,0.00271117,2425.9,2424.9,9.0598]
[1642973118551,0.00271117,2425.9,2425.7,0.62789824]
[1642973118752,0.04,2426.0,2425.7,0.76070845]
[1642973119549,0.04,2426.0,2425.8,0.595]
[1642973119799,0.00271117,2427.0,2425.9,7.8148]
[1642973120010,0.01276809,2427.2,2426.0,2.595]
[1642973120207,0.00271117,2427.5,2426.1,7.61234907]
[1642973120406,0.00271117,2427.5,2426.4,2.06132]
[1642973120605,0.01223624,2427.9,2426.5,8.22998695]
[1642973120805,7.0443,2428.9,2427.7,1.19256084]
[1642973120806,3.438,2428.9,2427.7,1.19256084]
[1642973121004,0.0123019,2428.6,2427.7,0.37720311]
[1642973121404,0.0123019,2428.6,2427.7,0.3]
[1642973121611,0.0123019,2428.6,2427.3,0.04999999]
[1642973121612,0.01230849,2428.0,2427.3,0.04999999]
[1642973121805,0.01230849,2428.0,2426.7,1.595]
[1642973121806,7.7,2427.9,2426.7,1.595]
[1642973122005,0.01230295,2427.4,2426.7,1.0]
[1642973122208,0.01230295,2427.4,2425.8,2.0617787]
[1642973122209,1.0799968,2427.3,2425.8,0.82592025]
[1642973122405,0.01285467,2427.0,2425.5,3.8225]
[1642973122605,0.01285467,2427.0,2425.5,0.595]
[1642973123011,5.9998,2428.2,2426.2,0.01238432]
[1642973123208,0.01240612,2428.4,2426.2,0.01238432]
[1642973123209,2.0,2428.1,2426.6,1.03061]
[1642973123464,2.0,2428.2,2426.7,0.595]
[1642973123654,2.0,2428.2,2426.4,3.6985]
[1642973123655,2.0,2428.2,2426.8,0.595]
[1642973123853,1.35678898,2427.5,2426.9,0.595]
[1642973124056,1.35678898,2427.5,2426.7,0.595]
[1642973124260,1.35678898,2427.5,2426.2,0.01238432]
[1642973124558,0.01250782,2427.2,2426.2,0.595]
[1642973124756,0.01250782,2427.2,2425.5,1.031174]
[1642973124956,0.01250782,2427.2,2425.4,1.7438]
[1642973125354,2.01250782,2427.2,2425.4,1.7438]
[1642973125657,0.01250782,2427.2,2426.1,0.979749]
[1642973125859,2.0,2427.6,2426.2,0.495]
[1642973125860,0.03985,2427.5,2426.2,0.495]
[1642973126055,1.2946315,2427.0,2426.4,1.46980205]
[1642973126256,1.2946315,2427.0,2426.4,0.795]
[1642973126457,1.2946315,2427.0,2425.9,0.50786004]
[1642973127196,1.40337414,2426.5,2426.1,0.96087385]
[1642973127397,1.40337414,2426.5,2425.9,2.04906288]
[1642973127599,0.03989,2427.3,2425.9,2.04906288]
[1642973127797,0.03989,2427.3,2425.9,3.34906288]
[1642973128207,0.19957975,2427.2,2425.4,2.06224]
[1642973128404,0.03991,2427.1,2426.3,1.12745115]
[1642973128703,0.03991,2427.1,2425.5,0.495]
[1642973128905,0.03991,2427.1,2425.7,0.01274267]
[1642973129105,0.03991,2427.1,2426.5,1.16143593]
[1642973129106,1.53104021,2427.1,2426.5,1.16143593]
[1642973129301,1.53104021,2427.1,2426.6,0.1648]
[1642973129510,1.1356,2427.4,2427.0,0.92901573]
[1642973129805,0.03987,2427.6,2426.6,0.1648]
[1642973129806,0.03987,2427.6,2427.5,1.10214268]
[1642973130005,0.04999999,2428.4,2427.5,1.10214268]
[1642973130006,0.03982,2428.1,2427.5,1.40214268]
[1642973130206,0.06291853,2428.4,2427.9,0.93584864]
[1642973130404,0.06291853,2428.4,2427.1,2.66839783]
[1642973130405,1.29501113,2427.9,2427.3,1.50568632]
[1642973130606,1.29501113,2427.9,2427.0,1.52553]
[1642973130607,0.16213518,2427.6,2427.4,0.1647]
[1642973130806,0.16213518,2427.6,2426.7,1.0]
[1642973130807,0.16213518,2427.6,2427.1,0.1647]
[1642973131266,0.16213518,2427.6,2427.2,1.02119612]
[1642973131570,3.25104,2428.8,2427.3,8.195]
[1642973131571,1.25104,2428.8,2427.3,8.195]
[1642973131771,1.1469,2429.1,2427.3,8.195]
[1642973131772,2.0396,2429.0,2427.3,8.195]
[1642973131966,2.0396,2429.0,2427.6,2.0605674]
[1642973131967,1.34015506,2429.0,2427.6,2.0605674]
[1642973132172,2.19957975,2428.9,2427.7,0.6597]
[1642973132372,0.01225739,2428.6,2427.7,0.495]
[1642973132570,0.04005,2428.5,2427.6,0.82601778]
[1642973132770,0.04005,2428.5,2427.2,0.1647]
[1642973132970,1.27127756,2427.9,2427.3,1.53809919]
[1642973133170,1.27127756,2427.9,2426.9,0.1647]
[1642973133171,2.17911877,2427.8,2426.9,0.1647]
[1642973133378,2.17911877,2427.8,2426.5,1.04364028]
[1642973133379,2.1622201,2427.8,2426.4,0.1647]
[1642973133578,0.0405,2427.7,2426.4,0.1647]
[1642973133874,0.0405,2427.7,2426.3,0.1648]
[1642973134074,1.53654079,2426.7,2426.3,0.1648]
[1642973134474,3.36209987,2427.6,2426.3,0.1648]
[1642973134700,0.04073,2427.5,2426.3,0.1648]
[1642973134897,0.04073,2427.5,2427.0,0.84488163]
[1642973135094,0.13819997,2427.8,2427.1,0.6597]
[1642973135296,0.13819997,2427.8,2427.1,0.67208505]
[1642973135494,1.30294449,2427.4,2427.1,0.67208505]
[1642973135698,1.30294449,2427.4,2426.6,0.1647]
[1642973136497,1.60294449,2427.4,2426.6,0.1647]
[1642973136697,0.03812,2427.3,2426.6,0.1647]
[1642973136896,1.14049908,2426.7,2426.6,0.1647]
[1642973138000,1.14049908,2426.7,2425.7,0.4648]
[1642973138650,1.14049908,2426.7,2426.1,0.98777017]
[1642973139049,1.14049908,2426.7,2426.1,1.28777017]
[1642973139248,0.04999999,2427.1,2426.5,1.12858012]
[1642973139453,0.04999999,2427.1,2426.2,0.1648]
[1642973139650,0.04999999,2427.1,2426.5,0.3]
[1642973140051,0.04999999,2427.1,2426.0,0.1648]
[1642973140352,0.04999999,2427.1,2426.3,0.87173696]
[1642973140353,1.16125946,2426.7,2426.3,0.87173696]
[1642973140655,0.04999999,2427.1,2426.7,1.07294601]
[1642973140858,0.04161,2427.3,2426.7,1.07294601]
[1642973141052,0.04161,2427.3,2426.7,1.37294601]
[1642973141753,1.23049742,2427.2,2426.7,2.40376601]
[1642973141953,0.04161,2427.3,2426.7,1.37294601]
[1642973142206,0.04161,2427.3,2426.8,0.1648]
[1642973142406,0.03987,2427.7,2426.8,0.1648]
[1642973142603,0.13819997,2427.8,2426.8,1.1648]
[1642973142902,1.33196132,2427.2,2426.8,0.1648]
[1642973143707,9.93595975,2427.1,2426.0,0.1648]
[1642973143909,0.01249349,2426.4,2425.9,0.5]
[1642973144516,2.53420975,2426.9,2425.9,0.5]
[1642973144706,1.41557888,2426.6,2426.1,0.86392485]
[1642973145013,0.53420975,2426.9,2426.5,1.13622409]